fUSD/lending_fUSD_20251027
["ID","MTS","AMOUNT","RATE_DAILY","PERIOD"]
[392524157,1761606654799,-500.0,0.0003589,7]
[392524158,1761606654808,-500.0,0.0003589,7]
[392524159,1761606654818,-562.65,0.0003589,7]
[392524160,1761606654827,-500.0,0.0003589,7]
[392524161,1761606654836,-500.0,0.0003589,7]
[392524162,1761606654846,-500.0,0.0003589,7]
[392524163,1761606654855,-1014.62454143,0.0003589,7]
[392524164,1761606654865,-500.0,0.0003589,7]
[392524165,1761606654875,-500.0,0.0003589,7]
[392524166,1761606654884,-168.54575582,0.0003589,7]
[392524167,1761606654893,-500.0,0.0003589,7]
[392524168,1761606654902,-500.0,0.0003589,7]
[392524169,1761606654912,-500.0,0.0003589,7]
[392524170,1761606654921,-573.69,0.0003589,7]
[392524171,1761606654932,-500.0,0.0003589,7]
[392524172,1761606654941,-814.41,0.0003589,7]
[392524173,1761606654951,-500.0,0.0003589,7]
[392524174,1761606654960,-783.14,0.0003589,7]
[392524175,1761606654971,-500.0,0.0003589,7]
[392524176,1761606654980,-500.0,0.0003589,7]
[392524177,1761606654990,-623.72,0.0003589,7]
[392524178,1761606654999,-500.0,0.0003589,7]
[392524179,1761606655010,-511.53153412,0.0003589,7]
[392524180,1761606655020,-500.0,0.0003589,7]
[392524181,1761606655029,-557.37,0.0003589,7]
[392524182,1761606655039,-500.0,0.0003589,7]
[392524183,1761606655048,-500.0,0.0003589,7]
[392524184,1761606655057,-500.0,0.0003589,7]
[392524185,1761606655067,-500.0,0.0003589,7]
[392524186,1761606655076,-500.0,0.0003589,7]
[392524187,1761606655086,-500.0,0.0003589,7]
[392524188,1761606655095,-500.0,0.0003589,7]
[392524189,1761606655104,-500.0,0.0003589,7]
[392524190,1761606655113,-500.0,0.0003589,7]
[392524191,1761606655123,-500.0,0.0003589,7]
[392524192,1761606655132,-500.0,0.0003589,7]
[392524193,1761606655141,-500.0,0.0003589,7]
[392524194,1761606655151,-500.0,0.0003589,7]
[392524195,1761606655160,-526.92,0.0003589,7]
[392524196,1761606655169,-500.0,0.0003589,7]
[392524197,1761606655179,-500.0,0.0003589,7]
[392524198,1761606655188,-2333.79,0.0003589,7]
[392524199,1761606655198,-554.21,0.0003589,7]
[392524200,1761606655207,-500.0,0.0003589,7]
[392524201,1761606655218,-500.0,0.0003589,7]
[392524202,1761606655227,-500.0,0.0003589,7]
[392524203,1761606655237,-500.0,0.0003589,7]
[392524204,1761606655246,-500.0,0.0003589,7]
[392524205,1761606655257,-500.0,0.0003589,7]
[392524206,1761606655267,-500.0,0.0003589,7]
[392524207,1761606655276,-500.0,0.0003589,7]
[392524208,1761606655286,-212.74497525,0.0003589,7]
[392524209,1761606655296,-300.0,0.0003589,2]
[392524210,1761606655306,-500.0,0.0003589,7]
[392524211,1761606655316,-2249.28,0.0003589,7]
[392524212,1761606655326,-500.0,0.0003589,7]
[392524213,1761606655336,-2269.57,0.0003589,7]
[392524214,1761606655346,-500.0,0.0003589,7]
[392524215,1761606655355,-500.0,0.0003589,7]
[392524216,1761606655364,-500.0,0.0003589,7]
[392524217,1761606655374,-500.0,0.0003589,7]
[392524218,1761606655384,-500.0,0.0003589,7]
[392524219,1761606655394,-500.0,0.0003589,7]
[392524220,1761606655404,-2012.15,0.0003589,7]
[392524221,1761606655413,-1902.64,0.0003589,7]
[392524222,1761606655422,-500.0,0.0003589,7]
[392524223,1761606655432,-500.0,0.0003589,7]
[392524224,1761606655442,-500.0,0.0003589,7]
[392524225,1761606655451,-2375.57,0.0003589,7]
[392524226,1761606655461,-638.15019914,0.0003589,7]
[392524227,1761606655471,-500.0,0.0003589,7]
[392524228,1761606655482,-500.0,0.0003589,7]
[392524229,1761606655493,-500.0,0.0003589,2]
[392524230,1761606655504,-2297.02,0.0003589,7]
[392524231,1761606655515,-500.19,0.0003589,7]
[392524232,1761606655524,-568.71,0.0003589,7]
[392524233,1761606655534,-1125.64,0.0003589,7]
[392524234,1761606655545,-500.0,0.0003589,7]
[392524235,1761606655555,-2157.61,0.0003589,7]
[392524236,1761606655564,-500.0,0.0003589,7]
[392524237,1761606655573,-500.0,0.0003589,7]
[392524238,1761606655583,-1121.57029654,0.0003589,7]
[392524239,1761606655594,-1439.09,0.0003589,7]
[392524240,1761606655605,-525.48079501,0.0003589,7]
[392524241,1761606655615,-722.51,0.0003589,7]
[392524242,1761606655626,-588.17082582,0.0003589,7]
[392524243,1761606655636,-662.5,0.0003589,7]
[392524244,1761606655646,-500.0,0.0003589,7]
[392524245,1761606655656,-500.0,0.0003589,7]
[392524246,1761606655666,-500.0,0.0003589,7]
[392524247,1761606655677,-500.0,0.0003589,7]
[392524248,1761606655688,-500.0,0.0003589,7]
[392524249,1761606655697,-2345.93,0.0003589,7]
[392524250,1761606655711,-631.83118263,0.0003589,7]
[392524251,1761606655720,-500.0,0.0003589,7]
[392524252,1761606655730,-500.0,0.0003589,7]
[392524253,1761606655740,-500.0,0.0003589,7]
[392524254,1761606655749,-500.0,0.0003589,7]
[392524255,1761606655758,-839.53,0.0003589,7]
[392524256,1761606655767,-500.0,0.0003589,7]
[392524257,1761606655777,-1234.67,0.0003589,7]
[392524258,1761606655786,-500.0,0.0003589,7]
[392524259,1761606655799,-500.0,0.0003589,7]
[392524260,1761606655808,-500.0,0.0003589,7]
[392524261,1761606655819,-1837.35,0.0003589,7]
[392524262,1761606655830,-500.0,0.0003589,2]
[392524263,1761606655841,-500.0,0.0003589,2]
[392524264,1761606655851,-500.0,0.0003589,7]
[392524265,1761606655860,-500.0,0.0003589,7]
[392524266,1761606655869,-869.3,0.0003589,7]
[392524267,1761606655878,-500.0,0.0003589,2]
[392524268,1761606655887,-500.0,0.0003589,7]
[392524269,1761606655897,-500.0,0.0003589,2]
[392524270,1761606655907,-500.0,0.0003589,7]
[392524271,1761606655917,-500.0,0.0003589,2]
[392524272,1761606655928,-500.0,0.0003589,7]
[392524273,1761606655937,-500.0,0.0003589,7]
[392524274,1761606655947,-500.0,0.0003589,2]
[392524275,1761606655959,-500.0,0.0003589,7]
[392524276,1761606655969,-500.0,0.0003589,7]
[392524277,1761606655978,-345.63295715,0.0003589,7]
[392524278,1761606655987,-378.88158784,0.0003589,2]
[392524279,1761606655997,-465.43,0.00035891,2]
[392524280,1761606656006,-952.1,0.00035891,2]
[392524281,1761606656015,-5000.96385274,0.00036,3]
[392524282,1761606656024,-850.0,0.00036,2]
[392524283,1761606656033,-29788.53746054,0.00036,2]
[392524284,1761606656043,-631.88,0.00036,14]
[392524285,1761606656052,-168.0,0.00036047,2]
[392524286,1761606656061,-560.37325145,0.00036064,2]
[392524287,1761606656070,-168.0,0.00036064,7]
[392524288,1761606656079,-168.0,0.0003607,2]
[392524289,1761606656089,-150.423,0.00036102,7]
[392524290,1761606656098,-501.65361066,0.00036133,5]
[392524291,1761606656107,-1093.82517042,0.00036151,8]
[392524292,1761606656117,-321.36889587,0.00036164,7]
[392524293,1761606656127,-500.0,0.00036164,7]
[392524294,1761606656137,-500.0,0.00036164,7]
[392524295,1761606656147,-500.0,0.00036164,7]
[392524296,1761606656157,-500.0,0.00036164,7]
[392524297,1761606656167,-500.0,0.00036164,7]
[392524298,1761606656177,-500.0,0.00036164,7]
[392524299,1761606656186,-500.0,0.00036164,7]
[392524300,1761606656195,-500.0,0.00036164,7]
[392524301,1761606656205,-500.0,0.00036164,7]
[392524302,1761606656214,-523.92,0.00036164,7]
[392524303,1761606656223,-500.0,0.00036164,7]
[392524304,1761606656232,-500.0,0.00036164,7]
[392524305,1761606656242,-500.0,0.00036164,7]
[392524306,1761606656251,-500.0,0.00036164,7]
[392524307,1761606656260,-500.0,0.00036164,7]
[392524308,1761606656269,-509.42902635,0.00036164,7]
[392524309,1761606656279,-500.0,0.00036164,7]
[392524310,1761606656288,-500.0,0.00036164,7]
[392524311,1761606656297,-2158.39,0.00036164,7]
[392524312,1761606656307,-500.0,0.00036164,7]
[392524313,1761606656316,-618.23,0.00036164,7]
[392524314,1761606656326,-500.0,0.00036164,7]
[392524315,1761606656335,-500.0,0.00036164,7]
[392524316,1761606656345,-500.0,0.00036164,7]
[392524317,1761606656354,-525.10779626,0.00036164,7]
[392524318,1761606656364,-500.0,0.00036164,7]
[392524319,1761606656373,-500.0,0.00036164,7]
[392524320,1761606656383,-517.24,0.00036164,7]
[392524321,1761606656393,-500.0,0.00036164,7]
[392524322,1761606656402,-500.0,0.00036164,7]
[392524323,1761606656451,-617.91,0.00036164,7]
[392524324,1761606656460,-500.0,0.00036164,7]
[392524325,1761606656470,-5347.46,0.00036164,7]
[392524326,1761606656479,-500.0,0.00036164,7]
[392524327,1761606656489,-1137.93,0.00036164,2]
[392524328,1761606656498,-500.0,0.00036164,7]
[392524329,1761606656508,-500.0,0.00036164,7]
[392524330,1761606656517,-955.26,0.00036164,7]
[392524331,1761606656526,-500.0,0.00036164,7]
[392524332,1761606656535,-600.09,0.00036164,7]
[392524333,1761606656544,-2171.75,0.00036164,7]
[392524334,1761606656554,-500.0,0.00036164,7]
[392524335,1761606656563,-500.0,0.00036164,7]
[392524336,1761606656573,-500.0,0.00036164,7]
[392524337,1761606656582,-2152.45,0.00036164,7]
[392524338,1761606656591,-1447.02,0.00036164,7]
[392524339,1761606656600,-500.0,0.00036164,7]
[392524340,1761606656610,-2215.75,0.00036164,7]
[392524341,1761606656619,-500.0,0.00036164,7]
[392524342,1761606656628,-2252.34,0.00036164,7]
[392524343,1761606656637,-500.0,0.00036164,7]
[392524344,1761606656647,-500.0,0.00036164,7]
[392524345,1761606656658,-500.0,0.00036164,7]
[392524346,1761606656667,-562.65,0.00036164,7]
[392524347,1761606656676,-500.0,0.00036164,7]
[392524348,1761606656685,-500.0,0.00036164,7]
[392524349,1761606656695,-500.0,0.00036164,7]
[392524350,1761606656709,-500.0,0.00036164,7]
[392524351,1761606656719,-573.69,0.00036164,7]
[392524352,1761606656729,-500.0,0.00036164,7]
[392524353,1761606656739,-814.41,0.00036164,7]
[392524354,1761606656748,-500.0,0.00036164,7]
[392524355,1761606656757,-783.14,0.00036164,7]
[392524356,1761606656766,-500.0,0.00036164,7]
[392524357,1761606656777,-623.72,0.00036164,7]
[392524358,1761606656786,-500.0,0.00036164,7]
[392524359,1761606656795,-500.0,0.00036164,7]
[392524360,1761606656804,-557.37,0.00036164,7]
[392524361,1761606656813,-500.0,0.00036164,7]
[392524362,1761606656823,-500.0,0.00036164,7]
[392524363,1761606656832,-500.0,0.00036164,7]
[392524364,1761606656841,-500.0,0.00036164,7]
[392524365,1761606656850,-500.0,0.00036164,7]
[392524366,1761606656859,-500.0,0.00036164,7]
[392524367,1761606656868,-520.62628213,0.00036164,7]
[392524368,1761606656877,-500.0,0.00036164,7]
[392524369,1761606656886,-526.92,0.00036164,7]
[392524370,1761606656895,-500.0,0.00036164,7]
[392524371,1761606656904,-500.0,0.00036164,7]
[392524372,1761606656914,-2333.79,0.00036164,7]
[392524373,1761606656923,-554.21,0.00036164,7]
[392524374,1761606656932,-500.0,0.00036164,7]
[392524375,1761606656941,-284.43564728,0.00036164,7]
[392524376,1761606656951,-500.0,0.00036164,7]
[392524377,1761606656959,-500.0,0.00036164,7]
[392524378,1761606656968,-500.0,0.00036164,7]
[392524379,1761606656977,-300.0,0.00036164,2]
[392524380,1761606656987,-500.0,0.00036164,7]
[392524381,1761606656996,-2249.28,0.00036164,7]
[392524382,1761606657006,-500.0,0.00036164,7]
[392524383,1761606657015,-2269.57,0.00036164,7]
[392524384,1761606657024,-500.0,0.00036164,7]
[392524385,1761606657033,-500.0,0.00036164,7]
[392524386,1761606657042,-500.0,0.00036164,7]
[392524387,1761606657051,-340.20818242,0.00036164,7]
[392524388,1761606657060,-500.0,0.00036164,7]
[392524389,1761606657069,-500.0,0.00036164,7]
[392524390,1761606657079,-2012.15,0.00036164,7]
[392524391,1761606657088,-1902.64,0.00036164,7]
[392524392,1761606657098,-500.0,0.00036164,7]
[392524393,1761606657108,-2375.57,0.00036164,7]
[392524394,1761606657118,-500.0,0.00036164,7]
[392524395,1761606657127,-500.0,0.00036164,7]
[392524396,1761606657136,-500.0,0.00036164,2]
[392524397,1761606657145,-2297.02,0.00036164,7]
[392524398,1761606657154,-500.19,0.00036164,7]
[392524399,1761606657164,-568.71,0.00036164,7]
[392524400,1761606657173,-1125.64,0.00036164,7]
[392524401,1761606657182,-500.0,0.00036164,7]
[392524402,1761606657192,-2157.61,0.00036164,7]
[392524403,1761606657201,-500.0,0.00036164,7]
[392524404,1761606657210,-1439.09,0.00036164,7]
[392524405,1761606657219,-722.51,0.00036164,7]
[392524406,1761606657229,-662.5,0.00036164,7]
[392524407,1761606657238,-500.0,0.00036164,7]
[392524408,1761606657247,-500.0,0.00036164,7]
[392524409,1761606657257,-500.0,0.00036164,7]
[392524410,1761606657266,-500.0,0.00036164,7]
[392524411,1761606657275,-500.0,0.00036164,7]
[392524412,1761606657284,-2345.93,0.00036164,7]
[392524413,1761606657294,-500.0,0.00036164,7]
[392524414,1761606657303,-500.0,0.00036164,7]
[392524415,1761606657312,-500.0,0.00036164,7]
[392524416,1761606657321,-500.0,0.00036164,7]
[392524417,1761606657330,-839.53,0.00036164,7]
[392524418,1761606657339,-500.0,0.00036164,7]
[392524419,1761606657349,-1234.67,0.00036164,7]
[392524420,1761606657359,-500.0,0.00036164,7]
[392524421,1761606657368,-500.0,0.00036164,7]
[392524422,1761606657378,-500.0,0.00036164,7]
[392524423,1761606657388,-1837.35,0.00036164,7]
[392524424,1761606657398,-500.66131911,0.00036164,2]
[392524425,1761606657408,-500.0,0.00036164,2]
[392524426,1761606657417,-500.0,0.00036164,7]
[392524427,1761606657427,-500.0,0.00036164,7]
[392524428,1761606657436,-869.3,0.00036164,7]
[392524429,1761606657446,-500.0,0.00036164,2]
[392524430,1761606657455,-500.0,0.00036164,7]
[392524431,1761606657469,-500.0,0.00036164,2]
[392524432,1761606657480,-500.0,0.00036164,7]
[392524433,1761606657490,-500.0,0.00036164,2]
[392524434,1761606657499,-500.0,0.00036164,7]
[392524435,1761606657509,-500.0,0.00036164,7]
[392524436,1761606657520,-500.0,0.00036164,2]
[392524437,1761606657530,-500.0,0.00036164,7]
[392524438,1761606657539,-500.0,0.00036164,7]
[392524439,1761606657548,-573.0,0.00036184,2]
[392524440,1761606657557,-3410.0,0.00036184,2]
[392524441,1761606657566,-820.0,0.00036184,2]
[392524442,1761606657576,-1402.58579918,0.00036184,2]
[392524443,1761606657585,-2052.0,0.00036184,2]
[392524444,1761606657594,-606.0,0.00036184,2]
[392524445,1761606657604,-1313.0,0.00036184,2]
[392524446,1761606657613,-1593.0,0.00036184,2]
[392524447,1761606657623,-1270.0,0.00036184,2]
[392524448,1761606657632,-818.0,0.00036184,2]
[392524449,1761606657642,-6461.0,0.00036185,2]
[392524450,1761606657651,-3490.0,0.00036185,2]
[392524451,1761606657661,-1186.0,0.00036185,2]
[392524452,1761606657671,-7606.93347913,0.00036218,2]
[392524453,1761606657680,-168.0,0.00036222,7]
[392524454,1761606657690,-152.0,0.00036245,4]
[392524455,1761606657703,-453.28078983,0.00036276,2]
[392524456,1761606657713,-414.74,0.00036313,2]
[392524457,1761606657722,-1303.22887885,0.00036403,7]
[392524458,1761606657731,-152.0,0.00036403,7]
[392524459,1761606657740,-152.0,0.00036403,7]
[392524460,1761606657749,-152.0,0.00036403,7]
[392524461,1761606657759,-250.0,0.00036421,5]
[392524462,1761606657769,-500.0,0.00036438,7]
[392524463,1761606657778,-500.0,0.00036438,7]
[392524464,1761606657788,-500.0,0.00036438,7]
[392524465,1761606657797,-500.0,0.00036438,7]
[392524466,1761606657806,-500.0,0.00036438,7]
[392524467,1761606657815,-500.0,0.00036438,7]
[392524468,1761606657825,-167.76304629,0.00036438,7]
[392524469,1761606657834,-500.0,0.00036438,7]
[392524470,1761606657844,-500.0,0.00036438,7]
[392524471,1761606657853,-523.92,0.00036438,7]
[392524472,1761606657862,-500.0,0.00036438,7]
[392524473,1761606657872,-500.0,0.00036438,7]
[392524474,1761606657881,-500.0,0.00036438,7]
[392524475,1761606657890,-498.17452704,0.00036438,7]
[392524476,1761606657899,-500.0,0.00036438,7]
[392524477,1761606657908,-500.0,0.00036438,7]
[392524478,1761606657917,-500.0,0.00036438,7]
[392524479,1761606657926,-2158.39,0.00036438,7]
[392524480,1761606657936,-500.0,0.00036438,7]
[392524481,1761606657945,-618.23,0.00036438,7]
[392524482,1761606657954,-500.0,0.00036438,7]
[392524483,1761606657963,-500.0,0.00036438,7]
[392524484,1761606657972,-500.0,0.00036438,7]
[392524485,1761606657981,-500.0,0.00036438,7]
[392524486,1761606657990,-500.0,0.00036438,7]
[392524487,1761606657999,-500.0,0.00036438,7]
[392524488,1761606658008,-431.85,0.00036438,7]
[392524489,1761606658018,-617.91,0.00036438,7]
[392524490,1761606658028,-388.54855058,0.00036438,7]
[392524491,1761606658038,-5347.46,0.00036438,7]
[392524492,1761606658047,-500.0,0.00036438,7]
[392524493,1761606658057,-1137.93,0.00036438,2]
[392524494,1761606658068,-500.0,0.00036438,7]
[392524495,1761606658079,-500.0,0.00036438,7]
[392524496,1761606658089,-955.26,0.00036438,7]
[392524497,1761606658099,-500.0,0.00036438,7]
[392524498,1761606658109,-600.09,0.00036438,7]
[392524499,1761606658118,-2171.75,0.00036438,7]
[392524500,1761606658128,-500.0,0.00036438,7]
[392524501,1761606658137,-500.0,0.00036438,7]
[392524502,1761606658147,-500.0,0.00036438,7]
[392524503,1761606658155,-2152.45,0.00036438,7]
[392524504,1761606658165,-1447.02,0.00036438,7]
[392524505,1761606658174,-500.0,0.00036438,7]
[392524506,1761606658183,-2215.75,0.00036438,7]
[392524507,1761606658192,-500.0,0.00036438,7]
[392524508,1761606658201,-2252.34,0.00036438,7]
[392524509,1761606658210,-500.0,0.00036438,7]
[392524510,1761606658219,-500.0,0.00036438,7]
[392524511,1761606658228,-500.0,0.00036438,7]
[392524512,1761606658237,-562.65,0.00036438,7]
[392524513,1761606658246,-500.0,0.00036438,7]
[392524514,1761606658255,-500.0,0.00036438,7]
[392524515,1761606658264,-500.0,0.00036438,7]
[392524516,1761606658273,-500.0,0.00036438,7]
[392524517,1761606658283,-573.69,0.00036438,7]
[392524518,1761606658292,-500.0,0.00036438,7]
[392524519,1761606658301,-814.41,0.00036438,7]
[392524520,1761606658311,-500.0,0.00036438,7]
[392524521,1761606658319,-783.14,0.00036438,7]
[392524522,1761606658329,-500.0,0.00036438,7]
[392524523,1761606658338,-623.72,0.00036438,7]
[392524524,1761606658348,-500.0,0.00036438,7]
[392524525,1761606658357,-500.0,0.00036438,7]
[392524526,1761606658367,-557.37,0.00036438,7]
[392524527,1761606658376,-500.0,0.00036438,7]
[392524528,1761606658385,-500.0,0.00036438,7]
[392524529,1761606658394,-500.0,0.00036438,7]
[392524530,1761606658404,-500.0,0.00036438,7]
[392524531,1761606658413,-500.0,0.00036438,7]
[392524532,1761606658422,-500.0,0.00036438,7]
[392524533,1761606658431,-501.1452959,0.00036438,7]
[392524534,1761606658440,-526.92,0.00036438,7]
[392524535,1761606658449,-500.0,0.00036438,7]
[392524536,1761606658459,-500.0,0.00036438,7]
[392524537,1761606658468,-2333.79,0.00036438,7]
[392524538,1761606658477,-554.21,0.00036438,7]
[392524539,1761606658486,-500.0,0.00036438,7]
[392524540,1761606658496,-500.0,0.00036438,7]
[392524541,1761606658505,-379.88310164,0.00036438,7]
[392524542,1761606658514,-500.0,0.00036438,7]
[392524543,1761606658523,-300.0,0.00036438,2]
[392524544,1761606658532,-500.0,0.00036438,7]
[392524545,1761606658541,-2249.28,0.00036438,7]
[392524546,1761606658550,-500.0,0.00036438,7]
[392524547,1761606658559,-2269.57,0.00036438,7]
[392524548,1761606658568,-500.0,0.00036438,7]
[392524549,1761606658577,-500.0,0.00036438,7]
[392524550,1761606658586,-500.0,0.00036438,7]
[392524551,1761606658595,-500.0,0.00036438,7]
[392524552,1761606658604,-500.0,0.00036438,7]
[392524553,1761606658614,-2012.15,0.00036438,7]
[392524554,1761606658623,-1902.64,0.00036438,7]
[392524555,1761606658632,-500.0,0.00036438,7]
[392524556,1761606658641,-2375.57,0.00036438,7]
[392524557,1761606658650,-500.0,0.00036438,7]
[392524558,1761606658659,-500.0,0.00036438,7]
[392524559,1761606658668,-556.90157413,0.00036438,2]
[392524560,1761606658677,-2297.02,0.00036438,7]
[392524561,1761606658687,-500.19,0.00036438,7]
[392524562,1761606658696,-568.71,0.00036438,7]
[392524563,1761606658709,-1125.64,0.00036438,7]
[392524564,1761606658719,-500.0,0.00036438,7]
[392524565,1761606658729,-2157.61,0.00036438,7]
[392524566,1761606658739,-500.0,0.00036438,7]
[392524567,1761606658748,-1439.09,0.00036438,7]
[392524568,1761606658757,-722.51,0.00036438,7]
[392524569,1761606658767,-662.5,0.00036438,7]
[392524570,1761606658780,-321.88075016,0.00036438,7]
[392524571,1761606658789,-500.0,0.00036438,7]
[392524572,1761606658799,-500.0,0.00036438,7]
[392524573,1761606658808,-500.0,0.00036438,7]
[392524574,1761606658818,-500.0,0.00036438,7]
[392524575,1761606658827,-2345.93,0.00036438,7]
[392524576,1761606658837,-500.0,0.00036438,7]
[392524577,1761606658846,-500.0,0.00036438,7]
[392524578,1761606658856,-510.11266811,0.00036438,7]
[392524579,1761606658865,-839.53,0.00036438,7]
[392524580,1761606658875,-500.0,0.00036438,7]
[392524581,1761606658884,-1234.67,0.00036438,7]
[392524582,1761606658894,-500.0,0.00036438,7]
[392524583,1761606658903,-500.0,0.00036438,7]
[392524584,1761606658912,-500.0,0.00036438,7]
[392524585,1761606658922,-1837.35,0.00036438,7]
[392524586,1761606658931,-500.0,0.00036438,2]
[392524587,1761606658941,-500.0,0.00036438,7]
[392524588,1761606658950,-461.0990293,0.00036438,7]
[392524589,1761606658960,-869.3,0.00036438,7]
[392524590,1761606658971,-267.92346834,0.00036438,2]
[392524591,1761606658981,-500.0,0.00036438,7]
[392524592,1761606658990,-500.0,0.00036438,2]
[392524593,1761606659000,-500.0,0.00036438,7]
[392524594,1761606659009,-500.0,0.00036438,2]
[392524595,1761606659019,-500.0,0.00036438,7]
[392524596,1761606659028,-500.0,0.00036438,7]
[392524597,1761606659038,-500.0,0.00036438,2]
[392524598,1761606659048,-500.0,0.00036438,7]
[392524599,1761606659057,-500.0,0.00036438,7]
[392524600,1761606659067,-168.0,0.00036625,2]
[392524601,1761606659076,-747.0,0.00036662,2]
[392524602,1761606659086,-500.0,0.00036712,7]
[392524603,1761606659096,-155.95049126,0.00036712,7]
[392524604,1761606659106,-500.0,0.00036712,7]
[392524605,1761606659115,-500.0,0.00036712,7]
[392524606,1761606659124,-500.0,0.00036712,7]
[392524607,1761606659134,-500.0,0.00036712,7]
[392524608,1761606659143,-500.0,0.00036712,7]
[392524609,1761606659152,-500.0,0.00036712,7]
[392524610,1761606659162,-523.92,0.00036712,7]
[392524611,1761606659171,-500.0,0.00036712,7]
[392524612,1761606659181,-535.74170508,0.00036712,7]
[392524613,1761606659190,-629.37621317,0.00036712,7]
[392524614,1761606659200,-225.52,0.00036712,7]
[392524615,1761606659209,-500.0,0.00036712,7]
[392524616,1761606659219,-2158.39,0.00036712,7]
[392524617,1761606659228,-500.0,0.00036712,7]
[392524618,1761606659238,-618.23,0.00036712,7]
[392524619,1761606659247,-500.0,0.00036712,7]
[392524620,1761606659257,-545.46202907,0.00036712,7]
[392524621,1761606659266,-500.0,0.00036712,7]
[392524622,1761606659275,-500.0,0.00036712,7]
[392524623,1761606659285,-500.0,0.00036712,7]
[392524624,1761606659294,-322.39949987,0.00036712,7]
[392524625,1761606659304,-617.91,0.00036712,7]
[392524626,1761606659313,-5347.46,0.00036712,7]
[392524627,1761606659322,-456.92589636,0.00036712,7]
[392524628,1761606659332,-1137.93,0.00036712,2]
[392524629,1761606659342,-500.0,0.00036712,7]
[392524630,1761606659351,-500.0,0.00036712,7]
[392524631,1761606659361,-955.26,0.00036712,7]
[392524632,1761606659370,-513.36529034,0.00036712,7]
[392524633,1761606659380,-600.09,0.00036712,7]
[392524634,1761606659389,-2171.75,0.00036712,7]
[392524635,1761606659399,-500.0,0.00036712,7]
[392524636,1761606659408,-168.78105196,0.00036712,7]
[392524637,1761606659417,-500.0,0.00036712,7]
[392524638,1761606659427,-2152.45,0.00036712,7]
[392524639,1761606659436,-1447.02,0.00036712,7]
[392524640,1761606659446,-500.0,0.00036712,7]
[392524641,1761606659456,-2215.75,0.00036712,7]
[392524642,1761606659465,-500.0,0.00036712,7]
[392524643,1761606659474,-2252.34,0.00036712,7]
[392524644,1761606659484,-500.0,0.00036712,7]
[392524645,1761606659493,-632.48133445,0.00036712,7]
[392524646,1761606659502,-500.0,0.00036712,7]
[392524647,1761606659512,-562.65,0.00036712,7]
[392524648,1761606659522,-500.0,0.00036712,7]
[392524649,1761606659531,-500.0,0.00036712,7]
[392524650,1761606659540,-500.0,0.00036712,7]
[392524651,1761606659549,-500.0,0.00036712,7]
[392524652,1761606659559,-573.69,0.00036712,7]
[392524653,1761606659568,-303.44578973,0.00036712,7]
[392524654,1761606659578,-814.41,0.00036712,7]
[392524655,1761606659587,-500.0,0.00036712,7]
[392524656,1761606659596,-783.14,0.00036712,7]